[Event "Titled Tuesday Blitz October 31 Late 2023"]
[White "Buscar, Michael"]
[Black "Osmak, Yuliia"]
[WhiteFideId "2603616"]
[BlackFideId "14101602"]
[WhiteElo "2343"]
[BlackElo "2525"]
[Result "1/2-1/2"]
[Round "7"]
[TimeControl "180+1"]
[Date "2023.10.31"]
[WhiteClock "0:00:08"]
[BlackClock "0:00:06"]
[Board "78"]

1. e4 {[%clk 0:02:46]}  c5 {[%clk 0:02:58]} 2. Nf3 {[%clk 0:02:45]}  Nc6 {[%clk 0:02:58]} 3. Bb5 {[%clk 0:02:46]}  g6 {[%clk 0:02:58]} 4. O-O {[%clk 0:02:46]}  Bg7 {[%clk 0:02:56]} 5. Re1 {[%clk 0:02:46]}  e5 {[%clk 0:02:54]} 6. c3 {[%clk 0:02:44]}  Nge7 {[%clk 0:02:52]} 7. a4 {[%clk 0:02:44]}  O-O {[%clk 0:02:48]} 8. Na3 {[%clk 0:02:44]}  a6 {[%clk 0:02:40]} 9. Bf1 {[%clk 0:02:44]}  d5 {[%clk 0:02:38]} 10. exd5 {[%clk 0:02:42]}  Qxd5 {[%clk 0:02:34]} 11. d3 {[%clk 0:02:27]}  Bg4 {[%clk 0:02:31]} 12. Be3 {[%clk 0:02:23]}  Rfd8 {[%clk 0:01:55]} 13. Nc4 {[%clk 0:02:15]}  Rab8 {[%clk 0:01:42]} 14. Nb6 {[%clk 0:02:11]}  Bxf3 {[%clk 0:01:24]} 15. Nxd5 {[%clk 0:02:08]}  Bxd1 {[%clk 0:01:22]} 16. Nxe7+ {[%clk 0:02:08]}  Nxe7 {[%clk 0:01:23]} 17. Raxd1 {[%clk 0:01:57]}  Rbc8 {[%clk 0:01:19]} 18. g3 {[%clk 0:01:56]}  Nd5 {[%clk 0:01:13]} 19. Bg5 {[%clk 0:01:47]}  f6 {[%clk 0:01:12]} 20. Bc1 {[%clk 0:01:48]}  b5 {[%clk 0:01:08]} 21. Bh3 {[%clk 0:01:43]}  f5 {[%clk 0:01:03]} 22. axb5 {[%clk 0:01:34]}  axb5 {[%clk 0:01:04]} 23. Bg2 {[%clk 0:01:34]}  Nb6 {[%clk 0:00:57]} 24. f4 {[%clk 0:01:21]}  Nd7 {[%clk 0:00:47]} 25. Bd5+ {[%clk 0:01:16]}  Kh8 {[%clk 0:00:36]} 26. Be6 {[%clk 0:01:16]}  Rc7 {[%clk 0:00:18]} 27. fxe5 {[%clk 0:01:05]}  Nxe5 {[%clk 0:00:16]} 28. Bf4 {[%clk 0:01:05]}  Nf3+ {[%clk 0:00:15]} 29. Kf1 {[%clk 0:00:53]}  Re7 {[%clk 0:00:13]} 30. Re2 {[%clk 0:00:43]}  Rde8 {[%clk 0:00:12]} 31. Bd5 {[%clk 0:00:37]}  Rxe2 {[%clk 0:00:11]} 32. Bxf3 {[%clk 0:00:37]}  Rxh2 {[%clk 0:00:11]} 33. Rd2 {[%clk 0:00:29]}  Rxd2 {[%clk 0:00:10]} 34. Bxd2 {[%clk 0:00:29]}  h6 {[%clk 0:00:08]} 35. Bd5 {[%clk 0:00:25]}  Rd8 {[%clk 0:00:08]} 36. c4 {[%clk 0:00:26]}  bxc4 {[%clk 0:00:08]} 37. dxc4 {[%clk 0:00:27]}  Bxb2 {[%clk 0:00:07]} 38. Bxh6 {[%clk 0:00:26]}  Bg7 {[%clk 0:00:07]} 39. Be3 {[%clk 0:00:24]}  Bd4 {[%clk 0:00:07]} 40. Bg5 {[%clk 0:00:24]}  Re8 {[%clk 0:00:06]} 41. Bf7 {[%clk 0:00:21]}  Ra8 {[%clk 0:00:06]} 42. Bf4 {[%clk 0:00:12]}  Kg7 {[%clk 0:00:06]} 43. Bd5 {[%clk 0:00:12]}  Ra2 {[%clk 0:00:05]} 44. Bd6 {[%clk 0:00:09]}  Kf6 {[%clk 0:00:04]} 45. Bc7 {[%clk 0:00:09]}  Be5 {[%clk 0:00:04]} 46. Bd8+ {[%clk 0:00:08]}  Kg7 {[%clk 0:00:04]} 47. Bb6 {[%clk 0:00:09]}  Bd4 {[%clk 0:00:04]} 48. Bc7 {[%clk 0:00:07]}  g5 {[%clk 0:00:04]} 49. Be6 {[%clk 0:00:07]}  Kf6 {[%clk 0:00:03]} 50. Bd5 {[%clk 0:00:07]}  g4 {[%clk 0:00:03]} 51. Bd8+ {[%clk 0:00:08]}  Kg6 {[%clk 0:00:03]} 52. Bc7 {[%clk 0:00:07]}  Rb2 {[%clk 0:00:03]} 53. Bc6 {[%clk 0:00:07]}  Rf2+ {[%clk 0:00:03]} 54. Ke1 {[%clk 0:00:07]}  Rc2 {[%clk 0:00:03]} 55. Be8+ {[%clk 0:00:06]}  Kf6 {[%clk 0:00:03]} 56. Bb5 {[%clk 0:00:06]}  Be5 {[%clk 0:00:02]} 57. Bd8+ {[%clk 0:00:06]}  Ke6 {[%clk 0:00:02]} 58. Bb6 {[%clk 0:00:07]}  Bxg3+ {[%clk 0:00:02]} 59. Kd1 {[%clk 0:00:06]}  Rb2 {[%clk 0:00:02]} 60. Bxc5 {[%clk 0:00:07]}  Bf2 {[%clk 0:00:03]} 61. Ba3 {[%clk 0:00:06]}  Rxb5 {[%clk 0:00:02]} 62. cxb5 {[%clk 0:00:05]}  g3 {[%clk 0:00:03]} 63. Ke2 {[%clk 0:00:05]}  f4 {[%clk 0:00:03]} 64. Kf3 {[%clk 0:00:05]}  Bb6 {[%clk 0:00:03]} 65. Bc1 {[%clk 0:00:05]}  Kf5 {[%clk 0:00:03]} 66. Bxf4 {[%clk 0:00:05]}  g2 {[%clk 0:00:03]} 67. Kxg2 {[%clk 0:00:05]}  Kxf4 {[%clk 0:00:04]} 68. Kf1 {[%clk 0:00:05]}  Ke5 {[%clk 0:00:04]} 69. Ke1 {[%clk 0:00:06]}  Kd5 {[%clk 0:00:05]} 70. Kd1 {[%clk 0:00:07]}  Kc5 {[%clk 0:00:06]} 71. Kc1 {[%clk 0:00:08]}  Kxb5 {[%clk 0:00:06]} 1/2-1/2


[Site "https://www.chess.com"]

[Event "Titled Tuesday Blitz October 31 Late 2023"]
[White "Bazilius, Augustinas"]
[Black "Osmonbekov, Talaibek"]
[WhiteFideId "12832251"]
[BlackFideId "2017253"]
[WhiteElo "2513"]
[BlackElo "2263"]
[Result "1-0"]
[Round "7"]
[TimeControl "180+1"]
[Date "2023.10.31"]
[WhiteClock "0:00:07"]
[BlackClock "0:00:00"]
[Board "81"]

1. d4 {[%clk 0:02:56]}  e6 {[%clk 0:02:59]} 2. c4 {[%clk 0:02:52]}  f5 {[%clk 0:02:59]} 3. Nf3 {[%clk 0:02:52]}  Nf6 {[%clk 0:03:00]} 4. g3 {[%clk 0:02:53]}  Be7 {[%clk 0:03:00]} 5. Bg2 {[%clk 0:02:54]}  O-O {[%clk 0:03:01]} 6. O-O {[%clk 0:02:55]}  d6 {[%clk 0:03:01]} 7. Nc3 {[%clk 0:02:55]}  a5 {[%clk 0:03:01]} 8. Qc2 {[%clk 0:02:44]}  Nc6 {[%clk 0:02:58]} 9. a3 {[%clk 0:02:43]}  e5 {[%clk 0:02:58]} 10. d5 {[%clk 0:02:42]}  Nb8 {[%clk 0:02:54]} 11. Ne1 {[%clk 0:02:42]}  Na6 {[%clk 0:02:20]} 12. e4 {[%clk 0:02:32]}  Qe8 {[%clk 0:02:14]} 13. Nd3 {[%clk 0:02:30]}  Qg6 {[%clk 0:01:58]} 14. Qe2 {[%clk 0:01:55]}  Nh5 {[%clk 0:01:41]} 15. f4 {[%clk 0:01:51]}  exf4 {[%clk 0:01:23]} 16. Bxf4 {[%clk 0:01:52]}  fxe4 {[%clk 0:01:03]} 17. Bxe4 {[%clk 0:01:52]}  Nxf4 {[%clk 0:01:03]} 18. Nxf4 {[%clk 0:01:47]}  Qh6 {[%clk 0:00:57]} 19. Bxh7+ {[%clk 0:01:23]}  Qxh7 {[%clk 0:00:57]} 20. Qxe7 {[%clk 0:01:24]}  Bh3 {[%clk 0:00:57]} 21. Nxh3 {[%clk 0:01:02]}  Qxh3 {[%clk 0:00:50]} 22. Qe6+ {[%clk 0:01:03]}  Qxe6 {[%clk 0:00:45]} 23. dxe6 {[%clk 0:01:04]}  Rxf1+ {[%clk 0:00:37]} 24. Rxf1 {[%clk 0:01:03]}  Re8 {[%clk 0:00:37]} 25. Re1 {[%clk 0:00:59]}  Nc5 {[%clk 0:00:36]} 26. e7 {[%clk 0:00:59]}  Kf7 {[%clk 0:00:30]} 27. Nb5 {[%clk 0:00:58]}  Rxe7 {[%clk 0:00:26]} 28. Rxe7+ {[%clk 0:00:56]}  Kxe7 {[%clk 0:00:26]} 29. Nxc7 {[%clk 0:00:57]}  Nd3 {[%clk 0:00:19]} 30. b3 {[%clk 0:00:55]}  Ne5 {[%clk 0:00:16]} 31. Kf2 {[%clk 0:00:53]}  a4 {[%clk 0:00:15]} 32. bxa4 {[%clk 0:00:48]}  Nxc4 {[%clk 0:00:15]} 33. Ke2 {[%clk 0:00:48]}  Nxa3 {[%clk 0:00:15]} 34. Kd3 {[%clk 0:00:42]}  Kd7 {[%clk 0:00:15]} 35. Nd5 {[%clk 0:00:39]}  Kc6 {[%clk 0:00:15]} 36. Ne7+ {[%clk 0:00:32]}  Kc5 {[%clk 0:00:14]} 37. Nf5 {[%clk 0:00:33]}  g6 {[%clk 0:00:11]} 38. Ne7 {[%clk 0:00:32]}  g5 {[%clk 0:00:11]} 39. h4 {[%clk 0:00:31]}  gxh4 {[%clk 0:00:10]} 40. gxh4 {[%clk 0:00:32]}  Nc4 {[%clk 0:00:08]} 41. h5 {[%clk 0:00:32]}  Ne5+ {[%clk 0:00:07]} 42. Ke4 {[%clk 0:00:30]}  Nf7 {[%clk 0:00:05]} 43. Kf5 {[%clk 0:00:30]}  d5 {[%clk 0:00:04]} 44. Kg6 {[%clk 0:00:21]}  Ne5+ {[%clk 0:00:04]} 45. Kf5 {[%clk 0:00:20]}  Nf7 {[%clk 0:00:03]} 46. Ke6 {[%clk 0:00:12]}  Ng5+ {[%clk 0:00:03]} 47. Kf6 {[%clk 0:00:12]}  Ne4+ {[%clk 0:00:02]} 48. Kg7 {[%clk 0:00:11]}  d4 {[%clk 0:00:00]} 49. Nf5 {[%clk 0:00:07]} 1-0


[Site "https://www.chess.com"]

[Event "Titled Tuesday Blitz October 31 Late 2023"]
[White "Souza, Gustavo Horokoski De"]
[Black "Tikhonov, Viacheslav"]
[WhiteFideId "2146584"]
[BlackFideId "44196407"]
[WhiteElo "2204"]
[BlackElo "2510"]
[Result "0-1"]
[Round "7"]
[TimeControl "180+1"]
[Date "2023.10.31"]
[WhiteClock "0:00:52"]
[BlackClock "0:00:35"]
[Board "82"]

1. c4 {[%clk 0:02:52]}  c5 {[%clk 0:02:58]} 2. g3 {[%clk 0:02:50]}  Nc6 {[%clk 0:02:57]} 3. Bg2 {[%clk 0:02:50]}  g6 {[%clk 0:02:58]} 4. Nc3 {[%clk 0:02:50]}  Bg7 {[%clk 0:02:59]} 5. Nf3 {[%clk 0:02:51]}  e5 {[%clk 0:02:59]} 6. O-O {[%clk 0:02:50]}  d6 {[%clk 0:02:58]} 7. e4 {[%clk 0:02:49]}  Nge7 {[%clk 0:02:58]} 8. d3 {[%clk 0:02:49]}  O-O {[%clk 0:02:58]} 9. Be3 {[%clk 0:02:44]}  h6 {[%clk 0:02:58]} 10. Qc1 {[%clk 0:02:43]}  Kh7 {[%clk 0:02:59]} 11. h4 {[%clk 0:02:43]}  Nd4 {[%clk 0:02:57]} 12. Bxd4 {[%clk 0:02:42]}  cxd4 {[%clk 0:02:52]} 13. Nd5 {[%clk 0:02:41]}  Nxd5 {[%clk 0:02:49]} 14. cxd5 {[%clk 0:02:39]}  Bd7 {[%clk 0:02:48]} 15. Qd2 {[%clk 0:02:37]}  Qb6 {[%clk 0:02:48]} 16. Rfc1 {[%clk 0:02:36]}  Rfc8 {[%clk 0:02:45]} 17. Rxc8 {[%clk 0:02:35]}  Rxc8 {[%clk 0:02:44]} 18. Rc1 {[%clk 0:02:35]}  Rxc1+ {[%clk 0:02:35]} 19. Qxc1 {[%clk 0:02:36]}  Bb5 {[%clk 0:02:36]} 20. Ne1 {[%clk 0:02:34]}  Qa6 {[%clk 0:02:11]} 21. Qb1 {[%clk 0:02:25]}  h5 {[%clk 0:02:01]} 22. a3 {[%clk 0:02:21]}  Qa4 {[%clk 0:01:54]} 23. Bf1 {[%clk 0:02:19]}  Bh6 {[%clk 0:01:46]} 24. Qc2 {[%clk 0:02:19]}  Qxc2 {[%clk 0:01:37]} 25. Nxc2 {[%clk 0:02:19]}  Ba4 {[%clk 0:01:37]} 26. Na1 {[%clk 0:02:07]}  Bd1 {[%clk 0:01:17]} 27. Bh3 {[%clk 0:02:04]}  Bc1 {[%clk 0:01:16]} 28. Bc8 {[%clk 0:01:33]}  b6 {[%clk 0:01:09]} 29. Kf1 {[%clk 0:01:15]}  Bxb2 {[%clk 0:01:04]} 30. Ke1 {[%clk 0:01:15]}  Ba4 {[%clk 0:01:05]} 31. Kd2 {[%clk 0:01:01]}  Bxa1 {[%clk 0:00:51]} 32. f4 {[%clk 0:00:58]}  Bc3+ {[%clk 0:00:50]} 33. Ke2 {[%clk 0:00:58]}  f6 {[%clk 0:00:47]} 34. g4 {[%clk 0:00:56]}  exf4 {[%clk 0:00:42]} 35. gxh5 {[%clk 0:00:55]}  gxh5 {[%clk 0:00:42]} 36. Kf3 {[%clk 0:00:55]}  Bd2 {[%clk 0:00:39]} 37. Bf5+ {[%clk 0:00:52]}  Kh6 {[%clk 0:00:39]} 38. Bd7 {[%clk 0:00:52]}  Bxd7 {[%clk 0:00:35]} 0-1


[Site "https://www.chess.com"]

[Event "Titled Tuesday Blitz October 31 Late 2023"]
[White "Curtis, John"]
[Black "Cervantes Landeiro, Thalia"]
[WhiteFideId "3200256"]
[BlackFideId "3520498"]
[WhiteElo "2178"]
[BlackElo "2502"]
[Result "1-0"]
[Round "7"]
[TimeControl "180+1"]
[Date "2023.10.31"]
[WhiteClock "0:00:37"]
[BlackClock "0:00:02"]
[Board "83"]

1. c4 {[%clk 0:03:00]}  e5 {[%clk 0:02:59]} 2. Nc3 {[%clk 0:03:01]}  Nc6 {[%clk 0:03:00]} 3. g3 {[%clk 0:03:01]}  Bc5 {[%clk 0:03:00]} 4. Bg2 {[%clk 0:03:01]}  d6 {[%clk 0:03:00]} 5. e3 {[%clk 0:03:02]}  a6 {[%clk 0:03:00]} 6. Nge2 {[%clk 0:03:02]}  Ba7 {[%clk 0:03:01]} 7. d4 {[%clk 0:03:02]}  exd4 {[%clk 0:02:56]} 8. Nxd4 {[%clk 0:03:02]}  Nge7 {[%clk 0:02:55]} 9. Nxc6 {[%clk 0:03:00]}  Nxc6 {[%clk 0:02:54]} 10. b3 {[%clk 0:03:00]}  O-O {[%clk 0:02:53]} 11. Bb2 {[%clk 0:03:00]}  Bd7 {[%clk 0:02:52]} 12. Nd5 {[%clk 0:03:00]}  Ne5 {[%clk 0:02:44]} 13. h3 {[%clk 0:02:56]}  Rb8 {[%clk 0:02:41]} 14. O-O {[%clk 0:02:54]}  b5 {[%clk 0:02:36]} 15. cxb5 {[%clk 0:02:51]}  Bxb5 {[%clk 0:02:36]} 16. Bxe5 {[%clk 0:02:27]}  dxe5 {[%clk 0:02:12]} 17. Re1 {[%clk 0:02:26]}  c6 {[%clk 0:02:10]} 18. Nb4 {[%clk 0:02:19]}  c5 {[%clk 0:02:03]} 19. Qxd8 {[%clk 0:02:13]}  Rfxd8 {[%clk 0:01:58]} 20. Nc6 {[%clk 0:02:13]}  Bxc6 {[%clk 0:01:58]} 21. Bxc6 {[%clk 0:02:13]}  Rd6 {[%clk 0:01:55]} 22. Be4 {[%clk 0:02:03]}  Rb4 {[%clk 0:01:47]} 23. Red1 {[%clk 0:01:57]}  Bb8 {[%clk 0:01:33]} 24. Rxd6 {[%clk 0:01:55]}  Bxd6 {[%clk 0:01:34]} 25. Rd1 {[%clk 0:01:53]}  Be7 {[%clk 0:01:30]} 26. Bd5 {[%clk 0:01:50]}  Kf8 {[%clk 0:01:25]} 27. Bc4 {[%clk 0:01:50]}  a5 {[%clk 0:01:24]} 28. Rd5 {[%clk 0:01:42]}  f6 {[%clk 0:01:20]} 29. Rd7 {[%clk 0:01:42]}  a4 {[%clk 0:00:56]} 30. Ra7 {[%clk 0:01:42]}  g5 {[%clk 0:00:56]} 31. g4 {[%clk 0:01:35]}  axb3 {[%clk 0:00:54]} 32. axb3 {[%clk 0:01:34]}  Rb8 {[%clk 0:00:52]} 33. Kg2 {[%clk 0:01:32]}  Rd8 {[%clk 0:00:52]} 34. Kf3 {[%clk 0:01:31]}  Rd2 {[%clk 0:00:47]} 35. Ke4 {[%clk 0:01:24]}  Rxf2 {[%clk 0:00:41]} 36. Bd5 {[%clk 0:01:19]}  Rh2 {[%clk 0:00:35]} 37. Kf5 {[%clk 0:01:19]}  Rxh3 {[%clk 0:00:25]} 38. Ra8+ {[%clk 0:01:10]}  Kg7 {[%clk 0:00:24]} 39. Rg8+ {[%clk 0:01:08]}  Kh6 {[%clk 0:00:24]} 40. Ke6 {[%clk 0:01:06]}  Rg3 {[%clk 0:00:16]} 41. Kxe7 {[%clk 0:01:02]}  Rxg4 {[%clk 0:00:17]} 42. e4 {[%clk 0:01:03]}  Rf4 {[%clk 0:00:17]} 43. Ke6 {[%clk 0:00:55]}  g4 {[%clk 0:00:17]} 44. Bc4 {[%clk 0:00:50]}  Kh5 {[%clk 0:00:17]} 45. Rg7 {[%clk 0:00:48]}  h6 {[%clk 0:00:16]} 46. Ke7 {[%clk 0:00:40]}  Kh4 {[%clk 0:00:16]} 47. Rg6 {[%clk 0:00:40]}  h5 {[%clk 0:00:16]} 48. Be6 {[%clk 0:00:38]}  g3 {[%clk 0:00:09]} 49. Bf5 {[%clk 0:00:38]}  Rf2 {[%clk 0:00:08]} 50. Kxf6 {[%clk 0:00:38]}  g2 {[%clk 0:00:09]} 51. Kxe5 {[%clk 0:00:37]}  Rb2 {[%clk 0:00:08]} 52. Kf4 {[%clk 0:00:37]}  Rxb3 {[%clk 0:00:08]} 53. Rxg2 {[%clk 0:00:37]}  c4 {[%clk 0:00:02]} 54. Rh2+ {[%clk 0:00:37]} 1-0


[Site "https://www.chess.com"]

[Event "Titled Tuesday Blitz October 31 Late 2023"]
[White "Sargsyan, Anna M."]
[Black "Nikolova, Adriana"]
[WhiteFideId "13308130"]
[BlackFideId "2908689"]
[WhiteElo "2535"]
[BlackElo "2396"]
[Result "1-0"]
[Round "7"]
[TimeControl "180+1"]
[Date "2023.10.31"]
[WhiteClock "0:00:20"]
[BlackClock "0:00:00"]
[Board "86"]

1. d4 {[%clk 0:03:00]}  d5 {[%clk 0:02:59]} 2. c4 {[%clk 0:03:01]}  c6 {[%clk 0:02:58]} 3. Nc3 {[%clk 0:03:02]}  Nf6 {[%clk 0:02:58]} 4. Nf3 {[%clk 0:03:02]}  dxc4 {[%clk 0:02:58]} 5. a4 {[%clk 0:03:02]}  Bf5 {[%clk 0:02:57]} 6. Ne5 {[%clk 0:03:03]}  Nbd7 {[%clk 0:02:55]} 7. Nxc4 {[%clk 0:03:03]}  Qc7 {[%clk 0:02:55]} 8. g3 {[%clk 0:03:02]}  e5 {[%clk 0:02:56]} 9. dxe5 {[%clk 0:03:00]}  Nxe5 {[%clk 0:02:57]} 10. Bf4 {[%clk 0:03:00]}  Nfd7 {[%clk 0:02:56]} 11. Bg2 {[%clk 0:03:00]}  g5 {[%clk 0:02:57]} 12. Ne3 {[%clk 0:02:38]}  gxf4 {[%clk 0:02:56]} 13. Nxf5 {[%clk 0:02:39]}  O-O-O {[%clk 0:02:54]} 14. Qc2 {[%clk 0:02:36]}  Nc4 {[%clk 0:02:54]} 15. O-O {[%clk 0:02:31]}  fxg3 {[%clk 0:02:52]} 16. hxg3 {[%clk 0:02:31]}  Nc5 {[%clk 0:02:53]} 17. b4 {[%clk 0:02:25]}  Ne6 {[%clk 0:02:49]} 18. b5 {[%clk 0:02:25]}  Rd2 {[%clk 0:01:53]} 19. Qe4 {[%clk 0:02:19]}  Nd6 {[%clk 0:01:38]} 20. Nxd6+ {[%clk 0:02:05]}  Rxd6 {[%clk 0:01:30]} 21. bxc6 {[%clk 0:02:05]}  Rxc6 {[%clk 0:01:04]} 22. Nb5 {[%clk 0:02:04]}  Qb6 {[%clk 0:00:43]} 23. Rac1 {[%clk 0:02:01]}  Bg7 {[%clk 0:00:30]} 24. Rxc6+ {[%clk 0:01:50]}  bxc6 {[%clk 0:00:31]} 25. Nd6+ {[%clk 0:01:51]}  Kc7 {[%clk 0:00:29]} 26. Nxf7 {[%clk 0:01:47]}  Re8 {[%clk 0:00:29]} 27. Rc1 {[%clk 0:01:42]}  c5 {[%clk 0:00:27]} 28. a5 {[%clk 0:01:39]}  Qa6 {[%clk 0:00:22]} 29. Rxc5+ {[%clk 0:01:15]}  Nxc5 {[%clk 0:00:19]} 30. Qxe8 {[%clk 0:01:16]}  Bf6 {[%clk 0:00:04]} 31. Ne5 {[%clk 0:01:16]}  Qe6 {[%clk 0:00:02]} 32. Qxe6 {[%clk 0:00:50]}  Nxe6 {[%clk 0:00:03]} 33. Nc4 {[%clk 0:00:50]}  Nd4 {[%clk 0:00:04]} 34. e4 {[%clk 0:00:48]}  Nb3 {[%clk 0:00:04]} 35. e5 {[%clk 0:00:48]}  Be7 {[%clk 0:00:05]} 36. f4 {[%clk 0:00:37]}  Bb4 {[%clk 0:00:05]} 37. a6 {[%clk 0:00:36]}  Bc5+ {[%clk 0:00:05]} 38. Kf1 {[%clk 0:00:35]}  Nd4 {[%clk 0:00:06]} 39. Be4 {[%clk 0:00:33]}  h6 {[%clk 0:00:06]} 40. f5 {[%clk 0:00:32]}  Kd7 {[%clk 0:00:04]} 41. g4 {[%clk 0:00:29]}  Nb5 {[%clk 0:00:02]} 42. Ke2 {[%clk 0:00:24]}  Nc7 {[%clk 0:00:02]} 43. Bb7 {[%clk 0:00:22]}  Ke7 {[%clk 0:00:02]} 44. Kf3 {[%clk 0:00:22]}  Kf7 {[%clk 0:00:01]} 45. Ke4 {[%clk 0:00:23]}  Bb4 {[%clk 0:00:01]} 46. Bd5+ {[%clk 0:00:20]}  Ke7 {[%clk 0:00:01]} 47. f6+ {[%clk 0:00:21]}  Kf8 {[%clk 0:00:01]} 48. e6 {[%clk 0:00:20]}  Nxa6 {[%clk 0:00:00]} 49. Ne5 {[%clk 0:00:20]} 1-0


[Site "https://www.chess.com"]

[Event "Titled Tuesday Blitz October 31 Late 2023"]
[White "Colivet Gamboa, Julio Cesar"]
[Black "Wanyama, Harold"]
[WhiteFideId "3949583"]
[BlackFideId "10000380"]
[WhiteElo "2376"]
[BlackElo "2448"]
[Result "1-0"]
[Round "7"]
[TimeControl "180+1"]
[Date "2023.10.31"]
[WhiteClock "0:00:37"]
[BlackClock "0:00:35"]
[Board "89"]

1. e4 {[%clk 0:03:00]}  c5 {[%clk 0:02:58]} 2. Nf3 {[%clk 0:02:59]}  e6 {[%clk 0:02:58]} 3. d4 {[%clk 0:02:58]}  cxd4 {[%clk 0:02:59]} 4. Nxd4 {[%clk 0:02:58]}  Nc6 {[%clk 0:02:59]} 5. Nc3 {[%clk 0:02:49]}  Qc7 {[%clk 0:02:57]} 6. Be3 {[%clk 0:02:46]}  a6 {[%clk 0:02:55]} 7. g3 {[%clk 0:02:45]}  Ne5 {[%clk 0:02:46]} 8. Bf4 {[%clk 0:02:36]}  b5 {[%clk 0:02:43]} 9. Bg2 {[%clk 0:02:25]}  Bb7 {[%clk 0:02:42]} 10. O-O {[%clk 0:02:25]}  Nf6 {[%clk 0:02:41]} 11. Qd2 {[%clk 0:02:22]}  d6 {[%clk 0:02:41]} 12. Rfe1 {[%clk 0:02:21]}  Nc4 {[%clk 0:02:40]} 13. Qc1 {[%clk 0:02:20]}  e5 {[%clk 0:02:40]} 14. b3 {[%clk 0:02:12]}  Nb6 {[%clk 0:02:23]} 15. Nd5 {[%clk 0:01:52]}  Nbxd5 {[%clk 0:02:20]} 16. exd5 {[%clk 0:01:52]}  O-O-O {[%clk 0:02:12]} 17. Nxb5 {[%clk 0:01:35]}  axb5 {[%clk 0:02:10]} 18. Be3 {[%clk 0:01:36]}  Bxd5 {[%clk 0:02:03]} 19. c4 {[%clk 0:01:26]}  Bxg2 {[%clk 0:02:01]} 20. Kxg2 {[%clk 0:01:26]}  Kb8 {[%clk 0:01:52]} 21. cxb5 {[%clk 0:01:24]}  Qxc1 {[%clk 0:01:51]} 22. Rexc1 {[%clk 0:01:22]}  d5 {[%clk 0:01:49]} 23. Bb6 {[%clk 0:01:19]}  Rd7 {[%clk 0:01:47]} 24. Rc6 {[%clk 0:01:18]}  Be7 {[%clk 0:01:42]} 25. Rac1 {[%clk 0:01:18]}  d4 {[%clk 0:01:39]} 26. Bc7+ {[%clk 0:01:17]}  Rxc7 {[%clk 0:01:28]} 27. Rxc7 {[%clk 0:01:17]}  Nd5 {[%clk 0:01:28]} 28. Rd7 {[%clk 0:01:14]}  Nc3 {[%clk 0:01:20]} 29. Rxe7 {[%clk 0:01:12]}  f6 {[%clk 0:01:16]} 30. a4 {[%clk 0:01:07]}  Rc8 {[%clk 0:01:08]} 31. b6 {[%clk 0:01:03]}  d3 {[%clk 0:00:59]} 32. Rd7 {[%clk 0:00:55]}  e4 {[%clk 0:00:58]} 33. a5 {[%clk 0:00:49]}  Rc6 {[%clk 0:00:56]} 34. a6 {[%clk 0:00:42]}  Rxb6 {[%clk 0:00:51]} 35. Rxc3 {[%clk 0:00:41]}  Rxa6 {[%clk 0:00:51]} 36. Rc4 {[%clk 0:00:38]}  f5 {[%clk 0:00:50]} 37. Rc5 {[%clk 0:00:38]}  g6 {[%clk 0:00:48]} 38. Re5 {[%clk 0:00:37]}  Rc6 {[%clk 0:00:46]} 39. Re8+ {[%clk 0:00:36]}  Rc8 {[%clk 0:00:46]} 40. Rxc8+ {[%clk 0:00:36]}  Kxc8 {[%clk 0:00:47]} 41. Rd4 {[%clk 0:00:37]}  Kc7 {[%clk 0:00:35]} 42. f3 {[%clk 0:00:37]} 1-0


[Site "https://www.chess.com"]